bitfinex-derivatives/quotes_ETHF0:USTF0_20260226
["timestamp","ask_amount","ask_price","bid_price","bid_amount"]
[1772109045989,0.56679394,2065.8,2065.3,0.57016727]
[1772109046191,0.56679394,2065.6,2065.1,0.57016727]
[1772109046593,0.56679394,2065.8,2065.1,0.57016727]
[1772109046992,0.56679394,2065.8,2065.1,0.57406123]
[1772109050000,7.46602196,2065.7,2065.1,0.57406123]
[1772109050192,0.56679394,2065.6,2065.1,0.57406123]
[1772109051690,0.56679394,2065.6,2065.1,0.00389396]
[1772109053000,0.56679394,2065.4,2064.7,0.57016727]
[1772109053896,0.56679394,2065.4,2064.7,0.57452497]
[1772109055697,0.56679394,2065.4,2064.7,0.0043577]
[1772109055899,0.56679394,2065.2,2064.7,0.0043577]
[1772109057999,0.56679394,2065.2,2064.5,0.57016727]
[1772109058197,0.56679394,2065.2,2064.0,0.57330589]
[1772109058397,0.56679394,2065.2,2064.1,0.57330589]
[1772109058898,0.56679394,2065.2,2064.1,0.57905365]
[1772109061204,0.56679394,2065.2,2064.3,0.57330589]
[1772109061404,0.56679394,2065.2,2064.4,0.57330589]
[1772109062805,0.52150534,2065.6,2064.6,0.57330589]
[1772109064707,0.52150534,2065.4,2064.6,0.57330589]
[1772109069913,0.51794297,2065.4,2064.6,0.57330589]
[1772109072413,0.52150534,2065.2,2064.6,0.57330589]
[1772109075111,0.52150534,2065.2,2064.2,0.57330589]
[1772109075315,0.52150534,2065.0,2064.2,0.57330589]
[1772109075610,0.5264728,2065.0,2064.2,0.57330589]
[1772109077120,0.5264728,2065.0,2064.1,0.24796776]
[1772109077121,0.00496746,2065.0,2064.4,0.57330589]
[1772109077419,0.52150534,2065.3,2064.4,0.57330589]
[1772109077609,4.04239937,2065.6,2064.7,0.57330589]
[1772109077814,7.51126111,2065.5,2064.7,0.57330589]
[1772109078016,0.52150534,2065.6,2064.7,0.57330589]
[1772109078210,7.51138221,2065.5,2064.7,0.57330589]
[1772109078417,0.52743647,2065.5,2064.7,0.57330589]
[1772109081323,7.41088779,2065.4,2064.7,0.57330589]
[1772109081526,0.52150534,2065.4,2064.7,0.57330589]
[1772109083225,0.52743647,2065.5,2064.7,0.57330589]
[1772109090531,0.52743647,2065.5,2064.6,7.52258545]
[1772109090532,0.00593113,2065.5,2065.0,0.52979278]
[1772109092636,0.57905097,2065.5,2065.0,0.52979278]
[1772109093230,0.57905097,2065.5,2065.1,0.54847498]
[1772109096835,0.57905097,2065.5,2064.7,0.54847498]
[1772109097042,0.57311984,2065.3,2064.5,0.54847498]
[1772109097239,0.57311984,2065.1,2064.5,0.54847498]
[1772109103540,0.57311984,2065.1,2064.4,6.342]
[1772109103745,0.57311984,2065.0,2064.3,0.54847498]
[1772109104147,0.57311984,2065.0,2064.2,6.89047498]
[1772109104540,0.57311984,2065.0,2064.2,0.54847498]
[1772109104845,0.57311984,2064.8,2064.2,6.89047498]
[1772109105747,0.57311984,2064.8,2064.3,0.54847498]
[1772109106842,0.57311984,2064.8,2064.2,6.89047498]
[1772109107249,0.57311984,2064.8,2064.1,0.55422274]
[1772109107444,0.57311984,2064.7,2064.1,0.55422274]
[1772109108943,0.57311984,2064.7,2064.1,0.00574776]
[1772109109345,0.57311984,2064.7,2064.1,0.55422274]
[1772109110146,0.57311984,2064.7,2064.1,0.00574776]
[1772109110344,0.57311984,2064.3,2063.9,0.54847498]
[1772109110541,0.57311984,2064.3,2063.7,0.54847498]
[1772109111352,0.57311984,2064.3,2063.7,0.55402001]
[1772109113249,0.57311984,2064.1,2063.4,0.54847498]
[1772109114254,0.57311984,2064.1,2063.6,0.54847498]
[1772109114448,1.18206565,2064.6,2063.6,0.54847498]
[1772109114449,0.57311984,2064.2,2063.8,0.54847498]
[1772109115553,0.57311984,2064.2,2063.7,0.54847498]
[1772109115754,0.57311984,2064.2,2063.6,0.54847498]
[1772109119251,0.57311984,2064.2,2063.4,0.00407116]
[1772109119451,0.57311984,2064.2,2063.5,0.5778964]
[1772109120152,0.57311984,2064.2,2063.7,0.5778964]
[1772109120352,0.56952861,2064.3,2063.9,0.5778964]
[1772109120551,1.42421565,2064.8,2063.9,0.5778964]
[1772109120746,0.56952861,2064.6,2064.1,0.5778964]
[1772109121056,0.56952861,2064.9,2064.1,0.5778964]
[1772109121654,0.56952861,2064.9,2064.2,0.5778964]
[1772109122254,0.56952861,2064.9,2064.1,6.343]
[1772109122657,0.56952861,2064.9,2064.2,0.5778964]
[1772109126259,0.56952861,2064.7,2064.2,0.5778964]
[1772109127962,11.018,2065.0,2064.2,0.5778964]
[1772109127963,0.56952861,2065.0,2064.2,0.5778964]
[1772109128162,10.73641328,2065.3,2064.2,0.5778964]
[1772109128365,7.87301079,2065.2,2064.2,0.5778964]
[1772109128565,0.56952861,2065.0,2064.2,0.5778964]
[1772109130463,4.29941328,2065.3,2064.2,0.5778964]
[1772109130464,0.56952861,2065.2,2064.2,0.5778964]
[1772109130665,7.87490059,2065.1,2064.2,0.5778964]
[1772109130862,0.56952861,2065.1,2064.2,0.5778964]
[1772109133366,52.36752861,2065.4,2064.4,0.5778964]
[1772109133667,0.00593113,2065.5,2064.6,0.5778964]
[1772109133971,0.57545974,2065.5,2064.6,0.5778964]
[1772109134569,0.57545974,2065.5,2064.7,6.9208964]
[1772109134768,0.57545974,2065.5,2064.8,0.5778964]
[1772109135670,0.00593113,2065.5,2064.8,0.5778964]
[1772109135973,0.56952861,2065.8,2064.8,0.5778964]
[1772109136468,0.56952861,2066.2,2065.0,0.5778964]
[1772109136668,0.56952861,2066.2,2065.2,0.5778964]
[1772109136866,0.57399775,2066.2,2065.3,0.5778964]
[1772109137668,0.57399775,2066.2,2065.2,0.00437861]
[1772109137969,0.56952861,2066.0,2065.2,0.00437861]
[1772109139871,0.56952861,2065.8,2064.8,0.5778964]
[1772109140070,0.56952861,2065.7,2064.8,0.5778964]
[1772109140771,0.56952861,2065.7,2064.8,0.58240964]
[1772109141075,0.56952861,2065.9,2065.0,0.5778964]
[1772109142070,0.56952861,2066.1,2065.2,0.5778964]
[1772109142271,0.56952861,2066.1,2065.3,0.5778964]
[1772109142470,0.00446914,2066.2,2065.3,0.5778964]
[1772109143267,0.57399775,2066.2,2065.3,0.5778964]
[1772109145470,41.36952861,2066.5,2065.5,0.5778964]
[1772109145670,0.56952861,2066.5,2065.5,0.5778964]
[1772109146678,0.57534513,2066.5,2065.5,0.5778964]
[1772109149672,0.00581652,2066.5,2065.5,0.5778964]
[1772109150281,0.53286108,2066.5,2065.5,0.5778964]
[1772109154182,7.622898,2066.4,2065.5,0.5778964]
[1772109154382,0.52704456,2066.3,2065.5,0.5778964]
[1772109156579,0.57419473,2066.1,2065.2,0.54952142]
[1772109158888,0.57419473,2065.9,2065.2,0.54952142]
[1772109160282,15.11232328,2066.1,2065.2,0.54952142]
[1772109160283,8.19845954,2065.8,2065.2,0.54952142]
[1772109160488,0.57419473,2065.8,2065.2,0.54952142]
[1772109161486,0.57419473,2066.0,2065.2,0.54952142]
[1772109161790,8.19824767,2065.9,2065.2,0.54952142]
[1772109161990,0.57419473,2065.9,2065.2,0.54952142]
[1772109162182,7.62403576,2065.8,2065.2,0.54952142]
[1772109162386,0.57419473,2065.9,2065.2,0.54952142]
[1772109162588,7.62383053,2065.8,2065.2,0.54952142]
[1772109162892,0.57419473,2066.1,2065.4,0.54952142]
[1772109163188,7.62343854,2066.0,2065.4,0.54952142]
[1772109163383,7.62343854,2065.9,2065.4,0.54952142]
[1772109163584,4.63151801,2066.1,2065.4,0.54952142]
[1772109163788,7.62342884,2066.0,2065.4,0.54952142]
[1772109163989,7.62342884,2065.9,2065.4,0.54952142]
[1772109164286,4.63151801,2066.1,2065.4,0.54952142]
[1772109164492,7.62342775,2066.0,2065.4,0.54952142]
[1772109164790,7.62342775,2065.9,2065.4,0.54952142]
[1772109164983,0.57419473,2066.0,2065.4,0.54952142]
[1772109165186,7.62342775,2065.9,2065.4,0.54952142]
[1772109165382,0.57419473,2066.0,2065.4,0.54952142]
[1772109165594,8.19762248,2065.9,2065.4,0.54952142]
[1772109165791,0.57419473,2065.9,2065.4,0.54952142]
[1772109166192,8.19785333,2065.8,2065.4,0.54952142]
[1772109166390,0.57419473,2065.8,2065.4,0.54952142]
[1772109166691,0.57419473,2066.0,2065.4,0.54952142]
[1772109166893,0.57419473,2065.8,2065.4,0.54952142]
[1772109170797,0.57419473,2065.9,2065.4,0.54952142]
[1772109170995,7.62382099,2065.8,2065.4,0.54952142]
[1772109171299,0.57419473,2065.9,2065.4,0.54952142]
[1772109171596,7.62382037,2065.8,2065.4,0.54952142]
[1772109171789,0.57419473,2065.9,2065.4,0.54952142]
[1772109172197,7.6238211,2065.8,2065.4,0.54952142]
[1772109172496,0.57419473,2065.9,2065.4,0.54952142]
[1772109172696,7.6238211,2065.8,2065.4,0.54952142]
[1772109172897,0.57419473,2065.9,2065.4,0.54952142]
[1772109173092,7.6238211,2065.8,2065.4,0.54952142]
[1772109173299,0.57419473,2065.9,2065.4,0.54952142]
[1772109173494,7.6238211,2065.8,2065.4,0.54952142]
[1772109173694,0.57419473,2065.9,2065.4,0.54952142]
[1772109173894,7.6238211,2065.8,2065.4,0.54952142]
[1772109174095,0.57419473,2065.9,2065.4,0.54952142]
[1772109174398,7.6238194,2065.8,2065.4,0.54952142]
[1772109174698,0.57419473,2065.9,2065.4,0.54952142]
[1772109174898,7.62381879,2065.8,2065.4,0.54952142]
[1772109175095,0.57419473,2065.9,2065.4,0.54952142]
[1772109175295,7.62381879,2065.8,2065.4,0.54952142]
[1772109175598,0.57419473,2065.9,2065.4,0.54952142]
[1772109175898,7.62381971,2065.8,2065.4,0.54952142]
[1772109176100,0.57419473,2065.9,2065.4,0.54952142]
[1772109176291,8.19702317,2065.8,2065.4,0.54952142]
[1772109176595,0.57320377,2065.8,2065.4,0.54952142]
[1772109176898,0.57320377,2065.9,2065.4,0.54952142]
[1772109177098,7.62381887,2065.8,2065.4,0.54952142]
[1772109177297,0.57320377,2065.9,2065.4,0.54952142]
[1772109177497,7.62381929,2065.8,2065.4,0.54952142]
[1772109177698,0.57320377,2065.9,2065.4,0.54952142]
[1772109177898,7.62381929,2065.8,2065.4,0.54952142]
[1772109178099,0.57320377,2065.9,2065.4,0.54952142]
[1772109182193,7.62403791,2065.8,2065.4,0.54952142]
[1772109182395,0.57320377,2065.8,2065.4,0.54952142]
[1772109182601,0.57320377,2066.0,2065.4,0.54952142]
[1772109182896,0.57320377,2065.8,2065.4,0.54952142]
[1772109183097,0.57320377,2066.0,2065.4,0.54952142]
[1772109183296,0.57320377,2065.8,2065.4,0.54952142]
[1772109185089,0.57320377,2065.8,2065.3,0.57533667]
[1772109185289,0.57320377,2065.6,2064.9,0.57533667]
[1772109185496,0.57320377,2065.4,2064.9,6.343]
[1772109185696,0.57320377,2065.4,2064.9,6.91833667]
[1772109186000,0.57320377,2065.2,2064.9,6.91833667]
[1772109186294,0.57320377,2065.2,2064.8,0.00451324]
[1772109186499,0.57320377,2065.0,2064.7,0.56940554]
[1772109187499,0.57870575,2065.0,2064.7,0.57335973]
[1772109189499,0.57870575,2065.0,2064.7,0.00395419]
[1772109189699,0.57870575,2065.0,2064.6,6.91833667]
[1772109190602,0.57870575,2065.0,2064.7,0.57533667]
[1772109193497,0.57870575,2065.0,2063.6,6.331]
[1772109193498,0.57870575,2065.0,2064.2,0.57533667]
[1772109193803,0.57320377,2064.8,2064.3,0.57533667]
[1772109194398,0.57320377,2064.8,2064.3,0.58032371]
[1772109197400,0.57320377,2064.8,2064.3,0.00498704]
[1772109198694,0.57320377,2064.8,2064.3,0.58032371]
[1772109199100,0.57320377,2064.9,2064.3,0.58032371]
[1772109199301,0.00550198,2065.0,2064.3,1.76137064]
[1772109199604,0.00550198,2065.0,2064.4,0.57533667]
[1772109199802,0.57870575,2065.0,2064.6,0.57533667]
[1772109201208,0.00550198,2065.0,2064.6,0.57533667]
[1772109201706,0.57870575,2065.0,2064.6,0.57533667]
[1772109204806,0.57870575,2065.0,2064.5,0.57533667]
[1772109205010,0.57870575,2065.0,2064.3,0.00498704]
[1772109205211,7.62859351,2064.9,2064.3,0.00498704]
[1772109205406,0.57320377,2064.8,2064.3,0.00498704]
[1772109205606,0.57320377,2064.8,2064.3,0.58032371]
[1772109214618,0.57320377,2064.8,2064.3,0.00498704]
[1772109215118,4.05216169,2065.0,2064.3,0.00498704]
[1772109215119,0.55353057,2064.6,2064.3,0.00498704]
[1772109215320,0.55353057,2064.6,2064.3,0.56437937]
[1772109215814,4.05216169,2065.0,2064.3,0.56437937]
[1772109216017,8.18168311,2064.9,2064.3,0.56437937]
[1772109216219,8.18168311,2064.8,2064.3,0.56437937]
[1772109216517,0.55353057,2064.6,2064.3,0.56929555]
[1772109218418,0.55353057,2064.9,2064.3,0.56929555]
[1772109218619,0.55353057,2064.7,2064.3,0.56929555]
[1772109220016,0.55353057,2064.7,2064.0,0.56437937]
[1772109220219,0.55353057,2064.5,2063.8,6.343]
[1772109220523,0.55353057,2064.3,2063.8,0.56437937]
[1772109220722,8.18250473,2064.2,2063.8,0.56437937]
[1772109220919,0.55353057,2064.2,2063.8,0.56437937]
[1772109221120,0.55353057,2064.2,2063.8,0.56902662]
[1772109222021,0.55353057,2064.4,2063.8,0.56902662]
[1772109222218,8.18346308,2064.3,2063.8,0.56902662]
[1772109222516,0.55353057,2064.3,2063.8,0.56902662]
[1772109225028,0.55353057,2064.5,2064.0,0.56437937]
[1772109225429,0.55353057,2064.5,2063.8,0.56902662]
[1772109225729,0.55353057,2064.5,2063.9,6.343]
[1772109226127,0.55353057,2064.5,2063.9,6.90737937]
[1772109226325,0.00550198,2065.0,2064.5,0.56437937]
[1772109226623,0.55353057,2065.2,2064.8,0.56437937]
[1772109226830,0.55353057,2065.2,2064.6,6.90737937]
[1772109227832,0.55822204,2065.2,2064.6,6.90737937]
[1772109229430,0.55822204,2065.2,2064.5,0.56437937]
[1772109229631,0.55353057,2065.0,2064.4,0.56437937]
[1772109241043,0.55353057,2065.0,2064.3,6.343]
[1772109241444,0.55353057,2065.0,2064.1,0.57093863]
[1772109243038,0.55353057,2065.0,2064.2,0.57093863]
[1772109243344,0.55353057,2065.0,2064.3,0.57093863]
[1772109247447,11.57430065,2065.1,2064.3,0.57093863]
[1772109247647,0.00469147,2065.2,2064.5,0.57093863]
[1772109247847,0.00469147,2065.2,2064.7,0.57093863]
[1772109248142,0.56086302,2065.4,2064.7,0.57093863]
[1772109249044,0.56442066,2065.4,2064.7,0.57093863]
[1772109249247,0.00712001,2065.4,2064.7,0.57093863]
[1772109249453,0.55730065,2065.8,2064.9,0.57093863]
[1772109249651,0.55730065,2065.8,2065.1,0.57093863]
[1772109250348,0.56293379,2065.8,2065.1,0.57093863]
[1772109256556,0.56293379,2065.8,2065.2,6.91393863]
[1772109256957,0.56293379,2065.8,2065.3,0.57093863]
[1772109257256,0.56293379,2065.8,2065.3,0.57555292]
[1772109260959,0.56293379,2065.8,2065.3,0.00461429]
[1772109261658,0.56293379,2065.8,2065.3,0.57555292]
[1772109262057,0.55730065,2065.6,2065.2,6.343]
[1772109262355,0.55730065,2065.6,2065.2,6.91393863]
[1772109263256,0.55730065,2065.6,2065.2,6.91793172]
[1772109265158,0.00563314,2065.8,2065.3,0.57093863]
[1772109265367,0.55730065,2066.1,2065.3,0.57093863]
[1772109265556,7.32063328,2066.0,2065.3,0.57093863]
[1772109265752,0.55730065,2066.1,2065.3,0.57093863]
[1772109265964,7.87792265,2066.0,2065.3,0.57093863]
[1772109266157,0.55730065,2066.0,2065.3,0.57093863]
[1772109266358,0.56139131,2066.0,2065.3,0.57093863]
[1772109267359,7.3256879,2065.9,2065.3,0.57093863]
[1772109267653,0.56139131,2066.0,2065.3,0.57093863]
[1772109267958,7.32611061,2065.9,2065.3,0.57093863]
[1772109268257,0.56139131,2066.0,2065.3,0.57093863]
[1772109268458,7.33024912,2065.9,2065.3,0.57093863]
[1772109268762,0.56139131,2066.0,2065.3,0.57093863]
[1772109268961,7.33024624,2065.9,2065.3,0.57093863]
[1772109269164,0.56139131,2066.0,2065.3,0.57093863]
[1772109269363,7.33577196,2065.9,2065.3,0.57093863]
[1772109269565,0.56139131,2066.0,2065.3,0.57093863]
[1772109270564,0.56139131,2066.0,2065.2,7.52821999]
[1772109270565,0.56139131,2066.0,2065.5,0.5276771]
[1772109270765,0.56139131,2066.0,2065.6,0.5276771]
[1772109271167,7.34819506,2065.9,2065.6,0.5276771]
[1772109271363,0.56139131,2066.0,2065.6,0.5276771]
[1772109271560,7.34643375,2065.9,2065.6,0.5276771]
[1772109271765,0.56139131,2066.0,2065.6,0.5276771]
[1772109271964,0.56649543,2065.8,2065.2,0.00399309]
[1772109272166,4.04835029,2066.0,2065.3,0.5276771]
[1772109272470,7.34715039,2065.9,2065.3,0.5276771]
[1772109272670,7.34715039,2065.8,2065.3,6.8706771]
[1772109272873,0.56649543,2065.9,2065.4,0.5276771]
[1772109273065,7.34678246,2065.8,2065.4,0.5276771]
[1772109273368,0.56649543,2065.9,2065.4,0.5276771]
[1772109273568,0.56649543,2065.7,2065.4,0.5276771]
[1772109273969,0.56649543,2065.9,2065.4,0.5276771]
[1772109274171,7.91330809,2065.8,2065.4,0.5276771]
[1772109274373,0.56649543,2065.8,2065.4,0.5276771]
[1772109274872,0.57058609,2066.0,2065.4,0.5276771]
[1772109275073,7.91287637,2065.9,2065.4,0.5276771]
[1772109275269,0.56649543,2065.9,2065.4,0.5276771]
[1772109275464,7.34632166,2065.8,2065.4,0.5276771]
[1772109275764,0.54372603,2065.8,2065.4,0.5276771]
[1772109277272,0.54372603,2065.9,2065.4,0.5276771]
[1772109277875,7.97192394,2065.8,2065.4,0.5276771]
[1772109278073,0.54372603,2065.8,2065.4,0.5276771]
[1772109278371,7.623903,2065.7,2065.4,0.5276771]
[1772109278570,0.54372603,2065.8,2065.4,0.5276771]
[1772109278766,7.62390098,2065.7,2065.4,0.5276771]
[1772109278967,0.54372603,2065.8,2065.4,0.5276771]
[1772109279167,7.62390232,2065.7,2065.4,0.5276771]
[1772109279367,0.54372603,2065.8,2065.4,0.5276771]
[1772109279568,7.62390072,2065.7,2065.4,0.5276771]
[1772109279767,0.54372603,2065.8,2065.4,0.5276771]
[1772109279967,7.62390072,2065.7,2065.4,0.5276771]
[1772109280168,0.54372603,2065.8,2065.4,0.5276771]
[1772109280470,7.62390061,2065.7,2065.4,0.5276771]
[1772109280670,0.54372603,2065.8,2065.4,0.5276771]
[1772109280870,8.16762725,2065.7,2065.4,0.52209794]
[1772109281069,0.54372603,2065.7,2065.4,0.52209794]
[1772109281272,4.59207632,2066.0,2065.4,0.52209794]
[1772109281474,8.16741294,2065.9,2065.4,0.52209794]
[1772109281672,0.54372603,2065.9,2065.4,0.52209794]
[1772109285076,0.54781669,2066.0,2065.4,0.52209794]
[1772109292883,0.54781669,2066.0,2065.2,0.00399309]
[1772109292884,0.54372603,2065.8,2065.2,0.00399309]
[1772109293083,0.54372603,2065.6,2065.2,0.54786412]
[1772109294577,4.04425963,2065.9,2065.2,0.54786412]
[1772109294782,7.62480037,2065.8,2065.2,0.54786412]
[1772109294986,0.54781669,2066.0,2065.2,0.54786412]
[1772109295185,7.62359034,2065.9,2065.2,0.54786412]
[1772109295386,7.62359034,2065.8,2065.2,0.54786412]
[1772109295577,0.54372603,2065.9,2065.2,0.54786412]
[1772109295777,7.62359057,2065.8,2065.2,0.54786412]
[1772109296083,0.54372603,2065.9,2065.2,0.54786412]
[1772109296290,7.62382225,2065.8,2065.2,0.54786412]
[1772109296589,0.54372603,2065.9,2065.2,0.54786412]
[1772109296887,7.62382225,2065.8,2065.2,0.54786412]
[1772109297086,0.54372603,2065.9,2065.2,0.54786412]
[1772109297389,7.62382225,2065.8,2065.2,0.54786412]
[1772109297587,0.54372603,2065.9,2065.2,0.54786412]
[1772109297785,7.62382133,2065.8,2065.2,0.54786412]
[1772109298081,0.54372603,2065.9,2064.4,0.54333074]
[1772109298285,0.52376186,2065.7,2064.8,0.54333074]
[1772109298488,7.62404001,2065.6,2065.0,0.54333074]
[1772109298689,0.52376186,2065.7,2065.0,0.54333074]
[1772109298889,8.14838793,2065.6,2065.0,0.54333074]
[1772109299084,0.52376186,2065.6,2065.0,0.54783421]
[1772109301489,0.52785252,2066.0,2065.1,0.54333074]
[1772109301683,0.52376186,2065.8,2065.3,0.54333074]
[1772109302485,7.6244848,2065.7,2065.0,0.00450347]
[1772109302690,0.52376186,2065.6,2065.1,6.343]
[1772109306197,0.52376186,2065.4,2064.6,6.88633074]
[1772109306394,0.52376186,2065.4,2064.7,0.54333074]
[1772109306592,0.52376186,2065.6,2064.7,0.54333074]
[1772109306789,4.04425963,2065.7,2064.7,0.54333074]
[1772109306790,8.1494026,2065.5,2064.7,0.54333074]
[1772109306994,0.52376186,2065.5,2064.7,0.54333074]
[1772109307199,0.52376186,2065.5,2064.7,0.54953208]
[1772109307999,7.62570318,2065.4,2064.7,0.54953208]
[1772109308201,0.52376186,2065.4,2064.7,0.54953208]
[1772109308401,0.52376186,2065.4,2064.7,6.89253208]
[1772109308602,0.52376186,2065.4,2064.8,0.54333074]
[1772109308800,0.52019949,2065.4,2064.8,0.54333074]
[1772109321213,0.52019949,2065.4,2064.9,6.343]
[1772109321414,0.52376186,2065.2,2064.9,6.343]
[1772109322713,0.52376186,2065.0,2064.5,0.54333074]
[1772109322913,0.52376186,2065.2,2064.5,0.54953208]
[1772109323111,4.05517426,2065.3,2064.5,0.54953208]
[1772109323112,8.15080476,2065.1,2064.5,0.54953208]
[1772109323418,0.52376186,2065.0,2064.5,0.54953208]
[1772109323915,0.52376186,2065.0,2064.5,0.55352391]
[1772109324517,0.52376186,2065.3,2064.5,0.55352391]
[1772109324714,7.6265134,2065.2,2064.5,0.55352391]
[1772109324915,0.52376186,2065.3,2064.5,0.55352391]
[1772109325116,7.62650591,2065.2,2064.5,0.55352391]
[1772109325415,0.52376186,2065.3,2064.5,0.55352391]
[1772109325618,7.62650221,2065.2,2064.5,0.54732257]
[1772109325818,0.52376186,2065.3,2064.5,0.54732257]
[1772109326118,8.16185866,2065.2,2064.5,0.54732257]
[1772109326315,0.53535645,2065.2,2064.7,0.52286141]
[1772109326620,0.53535645,2065.2,2064.9,0.52286141]
[1772109331721,0.53535645,2065.2,2064.9,0.52906275]
[1772109332613,0.53535645,2065.3,2064.9,0.52906275]
[1772109333121,8.16152695,2065.2,2064.9,0.52906275]
[1772109333322,0.53535645,2065.2,2064.9,0.52906275]
[1772109333525,0.53535645,2065.2,2064.9,0.00620134]
[1772109334924,0.53535645,2065.2,2064.8,5.10490287]
[1772109335121,0.53535645,2065.2,2064.8,6.343]
[1772109335522,0.53535645,2065.2,2064.8,6.86586141]
[1772109335721,0.53535645,2065.2,2064.9,0.53529845]
[1772109336020,0.21707373,2065.4,2064.9,0.53529845]
[1772109336225,7.62640641,2065.3,2064.9,0.53529845]
[1772109336430,7.62640641,2065.2,2064.9,0.53529845]
[1772109336626,0.21707373,2065.4,2064.9,0.53529845]
[1772109336825,7.62600939,2065.3,2064.9,0.53529845]
[1772109337027,0.21707373,2065.4,2064.9,0.53529845]
[1772109337228,7.82154696,2065.3,2064.9,0.53529845]
[1772109337522,0.22220343,2065.3,2064.9,0.53529845]
[1772109338619,0.22508742,2065.1,2065.0,6.343]
[1772109338820,0.22508742,2065.1,2065.0,4.37686909]
[1772109339517,0.22508742,2065.1,2064.5,0.58181852]
[1772109339725,0.22508742,2065.1,2064.6,6.343]
[1772109339920,7.62709863,2065.0,2064.6,6.92082669]
[1772109340126,4.05517426,2065.3,2064.6,6.92082669]
[1772109340327,7.62713339,2065.2,2064.6,6.92082669]
[1772109340524,0.0028114,2065.0,2064.6,6.92082669]
[1772109341931,0.0028114,2065.2,2064.7,0.57642099]
[1772109342131,7.62682223,2065.1,2064.7,0.57642099]
[1772109342334,0.0028114,2065.2,2064.7,0.57642099]
[1772109342528,7.63026886,2065.1,2064.7,0.57642099]
[1772109342728,0.00344415,2065.1,2064.7,0.57642099]
[1772109344135,7.6268244,2065.0,2064.7,0.57642099]
[1772109344433,0.00344415,2065.1,2064.7,0.57642099]
[1772109344633,7.6268244,2065.0,2064.7,0.57642099]
[1772109344835,0.00344415,2065.1,2064.7,0.57642099]
[1772109345134,7.6268244,2065.0,2064.7,0.57642099]
[1772109345334,0.00344415,2065.1,2064.7,0.57642099]
[1772109345635,4.05517426,2065.3,2064.7,0.57642099]
[1772109345835,0.52615142,2065.3,2064.7,0.57642099]
[1772109350131,0.52615142,2065.2,2064.7,0.57642099]
[1772109350731,0.52615142,2065.0,2064.7,6.343]
[1772109351634,0.52615142,2065.0,2064.6,0.53529845]
[1772109352135,0.52615142,2065.2,2064.6,0.53529845]
[1772109353337,0.52615142,2065.1,2064.5,6.88329028]
[1772109354337,0.52615142,2064.8,2064.5,0.00399183]
[1772109354538,0.52615142,2064.6,2064.1,6.344]
[1772109354737,0.52615142,2064.6,2064.1,0.53529845]
[1772109355438,0.52615142,2064.9,2064.3,0.53529845]
[1772109355737,0.52615142,2064.8,2064.3,0.53529845]
[1772109357736,0.56491136,2064.6,2064.3,0.53529845]
[1772109359338,4.05517426,2065.0,2064.3,0.53529845]
[1772109359539,0.56491136,2064.7,2064.3,0.53529845]
[1772109360232,4.62008562,2065.0,2064.5,0.53782044]
[1772109360438,0.56491136,2065.1,2064.7,0.53782044]
[1772109362338,0.56491136,2064.9,2064.4,6.344]
[1772109362839,0.56491136,2064.9,2064.4,6.88182044]
[1772109363438,0.56491136,2064.9,2064.5,0.53782044]
[1772109364333,0.56491136,2064.9,2064.3,0.53782044]
[1772109365639,0.56491136,2064.9,2064.2,6.344]
[1772109365837,0.56491136,2064.7,2064.1,0.78003044]
[1772109366044,0.56491136,2064.7,2064.2,0.53782044]
[1772109372544,0.56491136,2064.7,2064.1,6.88182044]
[1772109372739,0.56491136,2064.7,2064.1,0.53782044]
[1772109372944,0.56491136,2064.7,2064.1,6.88182044]
[1772109373645,0.56491136,2064.5,2064.1,6.344]
[1772109373844,0.57075963,2064.5,2064.1,6.344]
[1772109375045,0.57075963,2064.5,2064.1,6.88182044]
[1772109375445,0.57075963,2064.5,2064.0,6.88624344]
[1772109376041,0.57075963,2064.5,2064.1,0.53782044]
[1772109376441,0.56491136,2064.9,2064.3,0.53782044]
[1772109376640,4.05477672,2065.1,2064.5,0.53782044]
[1772109376641,0.56491136,2065.1,2064.5,0.53782044]
[1772109376845,7.95565515,2065.0,2064.5,0.53782044]
[1772109377044,0.56491136,2065.0,2064.5,0.53782044]
[1772109377545,0.56982032,2065.0,2064.5,0.53782044]
[1772109377944,0.56982032,2065.0,2064.4,0.53782044]
[1772109378141,0.56491136,2064.8,2064.1,0.53782044]
[1772109378544,0.56491136,2064.8,2064.2,0.53782044]
[1772109390852,0.56491136,2064.8,2064.1,1.73414947]
[1772109392056,0.56491136,2064.8,2064.2,0.55203531]
[1772109396258,4.62632367,2065.0,2064.3,1.18211416]
[1772109396464,7.96910251,2064.9,2064.4,0.52005482]
[1772109396756,7.4082218,2064.8,2064.4,0.52005482]
[1772109396951,0.56088071,2064.7,2064.4,0.52005482]
[1772109398658,0.56088071,2064.7,2064.0,0.52447782]
[1772109398864,0.56088071,2064.4,2064.0,0.52447782]
[1772109399059,0.56088071,2064.2,2064.0,0.004423]
[1772109401065,0.56088071,2064.5,2064.0,0.004423]
[1772109401365,0.56088071,2064.3,2064.0,0.52447782]
[1772109401762,0.56088071,2064.3,2064.0,0.004423]
[1772109402062,1.74299487,2064.3,2064.0,0.004423]
[1772109402262,0.56088071,2064.2,2063.7,1.84166154]
[1772109402658,0.56088071,2064.2,2063.8,0.52005482]
[1772109403264,0.56088071,2064.2,2063.8,0.00585836]
[1772109405261,0.56088071,2064.2,2063.5,6.86405482]
[1772109406268,0.56088071,2064.2,2063.5,6.86856791]
[1772109406762,0.56088071,2064.0,2063.2,0.52005482]
[1772109407967,0.56088071,2064.0,2063.2,0.52537081]
[1772109415575,0.56088071,2064.2,2063.4,0.52005482]
[1772109422375,0.52554319,2064.0,2063.2,0.5274071]
[1772109425077,15.239534,2064.3,2063.2,0.5274071]
[1772109425078,0.52554319,2064.2,2063.3,0.52209111]
[1772109425283,0.52554319,2064.0,2063.3,0.52209111]
[1772109426983,0.52554319,2063.8,2063.2,0.5274071]
[1772109427180,0.52554319,2063.8,2063.2,0.00531599]
[1772109427584,0.52554319,2063.8,2063.2,0.5274071]
[1772109431188,0.52554319,2063.6,2063.2,0.5274071]
[1772109435889,0.52554319,2063.7,2063.2,0.5274071]
[1772109436991,0.52554319,2063.3,2062.5,0.52209111]
[1772109437295,0.52554319,2063.1,2062.5,0.52209111]
[1772109437992,0.52554319,2062.9,2062.5,0.52596388]
[1772109443694,0.52554319,2063.0,2062.5,0.52596388]
[1772109443895,0.00540481,2063.1,2062.5,0.52596388]
[1772109444290,0.52554319,2063.4,2062.5,0.52596388]
[1772109444495,7.43190463,2063.3,2062.5,0.52596388]
[1772109444793,0.52554319,2063.4,2062.5,0.52240151]
[1772109445090,0.52554319,2063.2,2062.5,0.52240151]
[1772109445494,0.53072162,2063.2,2062.5,0.52240151]
[1772109456403,0.57471772,2063.0,2062.2,0.48280819]
[1772109457403,0.57471772,2063.0,2062.2,0.48763232]
[1772109460905,0.57471772,2063.1,2062.2,0.48763232]
[1772109461306,8.2097097,2063.0,2062.2,0.48763232]
[1772109461506,0.57471772,2063.0,2062.2,0.48763232]
[1772109462607,0.57989615,2063.2,2062.5,0.48274239]
[1772109462807,0.57989615,2063.2,2062.6,0.48274239]
[1772109464209,7.63435263,2063.1,2062.6,0.48274239]
[1772109464508,0.57989615,2063.2,2062.6,0.48274239]